Cogmind - Beta 15 @@@ ROGUE MODE // 2025.08.23 @ 13:27:32 Player: beans Result: Destroyed by P-70 Sage with High-powered Shock Rifle Performance ------------- Evolutions (5) 2500 Regions Visited (13) 2600 Robots Destroyed (140) 700 Value Destroyed (4692) 4692 Prototype IDs (35) 700 Alien Tech Used (0) 0 Bonus (628) 628 TOTAL SCORE: 11820 Bonus ------- High Alert Combat Kills 131 Follower Combat Kills 30 Entered Garrisons 200 Aligned with FarCom 300 Friendly Fire -33 Cogmind --------- Core Integrity 0/1000 Matter 42/300 Energy 99/100 System Corruption 20% Temperature Cool (0) Movement Core (50) Location -5/Factory Parts ------- > --- POWER (3) -------- (None) > --- PROPULSION (2) --- (None) > --- UTILITY (6) ------ Enhanced Optical Array Improved Corruption Screen > --- WEAPON (6) ------- (None) > --- INVENTORY (5) ---- Improved Weapon Cycler Latent Energy Streamer Enhanced Gauss Cannon Rocket Array Tiamat Missile Launcher Peak State ------------ > --- POWER ------------ Enhanced Nuclear Core Enhanced Nuclear Core > --- PROPULSION ------- Light Treads Armored Treads > --- UTILITY ---------- Improved Heat Sink Large Storage Unit Improved Signal Interpreter Core Analyzer Weapon Cycler Weapon Cycler > --- WEAPON ----------- Heavy Laser Enhanced Autogun Assault Cannon Mini Assault Cannon > --- INVENTORY -------- VSS Leg High-capacity Matter Pod Compact Matter Pod Compact Matter Pod Launcher Guidance Computer Heavy Insulated Plating Heavy Laser Force Rifle Latent Energy Streamer Improved Assault Rifle Rocket Launcher Precision Grenade Launcher Rocket Array Rocket Array [Rating: 55] Favorites ----------- Power Enhanced Nuclear Core Engine Ion Engine Power Core Enhanced Nuclear Core Propulsion Light Treads Treads Light Treads Leg Aluminum Leg Hover Unit Antigrav Array Flight Unit Improved Diametric Drive Utility Large Storage Unit Device Weapon Cycler Storage Large Storage Unit Processor Improved Signal Interpreter Protection Heavy Insulated Plating Weapon Enhanced Autogun Energy Gun Heavy Laser Energy Cannon Latent Energy Streamer Ballistic Gun Enhanced Autogun Ballistic Cannon Mini Assault Cannon Launcher Rocket Array Special Weapon Remote Datajack Build | -11 -10 -10 -10 -9 -8 -7 -6 -6 -6 -6 -5 -5 -5 ------- Run | Yrd Mat Min Exi Min Mat Fac Fac Was Fac Gar Fac Was Fac Slots Evolved 10 | . . . . . 4 2 2 . . . 2 . . Power 2 | . . . . . 2 . . . . . . . . Propulsion . | . . . . . . . . . . . . . . Utility 4 | . . . . . 2 2 . . . . . . . Weapon 4 | . . . . . . . 2 . . . 2 . . Parts Attached 78 | 5 5 1 1 . 27 14 1 3 1 3 4 2 11 Power 11 | 1 . . . . 5 4 . . . . 1 . . Engine 5 | 1 . . . . 3 1 . . . . . . . Core 6 | . . . . . 2 3 . . . . 1 . . Reactor . | . . . . . . . . . . . . . . Propulsion 11 | 2 . . . . 6 . . . . 1 . 2 . Treads 7 | 2 . . . . 4 . . . . 1 . . . Leg 2 | . . . . . 2 . . . . . . . . Wheel . | . . . . . . . . . . . . . . Hover 1 | . . . . . . . . . . . . 1 . Flight 1 | . . . . . . . . . . . . 1 . Utility 21 | . 3 1 . . 3 5 1 . . 1 1 . 6 Device 9 | . . 1 . . 1 4 1 . . . . . 2 Storage 4 | . 3 . . . 1 . . . . . . . . Processor 7 | . . . . . 1 1 . . . 1 . . 4 Hackware . | . . . . . . . . . . . . . . Protection 1 | . . . . . . . . . . . 1 . . Artifact . | . . . . . . . . . . . . . . Weapon 35 | 2 2 . 1 . 13 5 . 3 1 1 2 . 5 Energy Gun 8 | . 2 . . . 2 3 . . . . . . 1 Energy Cannon 3 | . . . 1 . 1 . . . . . . . 1 Ballistic Gun 11 | 2 . . . . 7 . . . . 1 1 . . Ballistic Cannon 5 | . . . . . . . . 2 1 . 1 . 1 Launcher 7 | . . . . . 3 1 . 1 . . . . 2 Special Weapon 1 | . . . . . . 1 . . . . . . . Impact Weapon . | . . . . . . . . . . . . . . Slashing Weapon . | . . . . . . . . . . . . . . Piercing Weapon . | . . . . . . . . . . . . . . Special Melee Weapon . | . . . . . . . . . . . . . . Unidentified Prototypes 12 | . . . . . 4 3 1 1 . . . 1 2 Parts Lost 34 | . . . . . 13 3 . . 1 11 2 . 4 Power 8 | . . . . . 5 1 . . . 2 . . . Propulsion 5 | . . . . . 2 . . . 1 2 . . . Utility 8 | . . . . . 1 1 . . . 4 . . 2 Weapon 13 | . . . . . 5 1 . . . 3 2 . 2 Highest Loss Streak 6 | . . . . . 4 1 . . 1 6 1 . 2 To Critical Strikes . | . . . . . . . . . . . . . . Average Backups 11 | . 4 7 8 11 13 14 14 11 13 13 3 3 4 Power . | . . . . . . . . . . . . . . Propulsion . | . . . . . . 1 1 1 1 . . . . Utility 3 | . . 1 2 4 3 4 4 4 5 4 1 1 . Weapon 7 | . 4 5 6 7 8 8 9 6 7 7 2 2 4 Tool/Special . | . . . . . . . . . . . . . . Unused Backups 9 | . . 1 . . 2 1 . . 1 3 . . 1 Power . | . . . . . . . . . . . . . . Propulsion 1 | . . 1 . . . . . . . . . . . Utility 4 | . . . . . 1 . . . 1 2 . . . Weapon 3 | . . . . . 1 1 . . . 1 . . . Tool/Special 1 | . . . . . . . . . . . . . 1 Average Slot Usage (%) 74 | . 77 98 100 100 76 84 80 91 86 71 31 33 32 Engine 3 | . 14 14 14 14 6 1 . . . . . . . Core 5 | . . . . . 2 6 13 13 13 9 3 5 . Treads 12 | . 28 28 28 28 13 14 13 13 11 6 . . . Device 14 | . . 12 14 14 15 22 20 20 20 11 . . . Storage 8 | . 6 14 14 14 11 11 6 6 6 5 . . . Processor 10 | . . . . . 8 11 13 13 13 15 13 11 21 Energy Gun 5 | . 24 28 21 14 . 10 6 6 2 . . . . Ballistic Gun 7 | . 3 . . . 16 4 6 6 6 7 2 . . Ballistic Cannon 2 | . . . . . . . . 5 11 10 6 5 4 Peak Build Rating 55 | 5 6 11 20 21 33 47 49 54 55 51 32 38 45 Average Rating 32 | 3 5 10 15 20 25 37 46 52 51 44 22 34 31 On Entrance 24 | . 5 6 11 20 21 30 46 46 54 50 19 17 23 Naked Turns . | . . . . . . . . . . . . . . Heaviest Build 58 | 8 29 32 40 40 44 46 46 58 58 54 25 19 16 Greatest Support 44 | 40 40 40 40 40 44 40 40 40 40 40 3 26 7 Greatest Overweight (x) 16 | . . . . . 11 1 1 1 2 16 8 3 2 Average Overweight (x) . | . . . . . . . 1 1 1 1 3 . . Largest Inventory Capacity 15 | 5 15 15 15 15 15 15 15 15 15 15 5 5 5 Average Capacity 13 | 5 9 15 15 15 15 15 15 15 15 14 5 5 5 Most Carried 15 | 3 6 8 9 12 15 15 15 14 15 15 5 5 5 Average Carried 11 | . 4 7 8 11 13 14 14 11 14 14 4 4 4 Final Capacity 15 | 5 15 15 15 15 15 15 15 15 15 5 5 5 5 Final Carried 15 | . 6 8 9 12 14 14 14 13 15 5 5 5 5 Class Distribution -------------------- 49% | Mutant 23% | Skirmisher 19% | Gunner 6% | Sprinter Dominant Class ---------------- Mutant | -10/Materials Mutant | -10/Mines Mutant | -10/Exiles Mutant | -9/Mines Skirmisher | -8/Materials Mutant | -7/Factory Mutant | -6/Factory Gunner | -6/Waste Gunner | -6/Factory Gunner | -6/Garrison Mutant | -5/Factory Mutant | -5/Waste Sprinter | -5/Factory Resources | -11 -10 -10 -10 -9 -8 -7 -6 -6 -6 -6 -5 -5 -5 ----------- Run | Yrd Mat Min Exi Min Mat Fac Fac Was Fac Gar Fac Was Fac Matter Collected 4614 | 181 75 . . 192 1518 438 . 533 459 464 119 563 72 Remotely . | . . . . . . . . . . . . . . Salvage Created 6938 | . 75 . . 65 2516 1112 . 1096 358 297 179 1165 75 Parts 277 | . 7 . . 9 124 56 . 2 37 18 12 6 6 Haulers Intercepted 7 | . . . . . 4 3 . . . . . . . Recyclers Shooed 8 | . . . . . 3 4 . . . . . . 1 Parts Field Recycled . | . . . . . . . . . . . . . . Retrieved Matter . | . . . . . . . . . . . . . . Parts Self-Destructed . | . . . . . . . . . . . . . . Prevented . | . . . . . . . . . . . . . . Kills | -11 -10 -10 -10 -9 -8 -7 -6 -6 -6 -6 -5 -5 -5 ------- Run | Yrd Mat Min Exi Min Mat Fac Fac Was Fac Gar Fac Was Fac Combat Hostiles Destroyed 91 | . 1 . . . 36 16 . 6 7 10 6 5 4 Guns 51 | . 1 . . . 29 15 . . 3 3 . . . Cannons 11 | . . . . . . . . 1 4 3 . 2 1 AOE 27 | . . . . . 6 . . 5 . 4 6 3 3 Classes Destroyed 17 | . 3 . . 1 10 2 . 1 . . . . . Worker 13 | . . . . 1 5 . . . 7 . . . . Builder 9 | . 1 . . 2 3 1 . . 2 . . . . Tunneler 1 | . . . . . 1 . . . . . . . . Hauler 7 | . . . . . 4 3 . . . . . . . Recycler 7 | . . . . . 5 2 . . . . . . . Mechanic 3 | . . . . . 2 . . . . . 1 . . Operator 2 | . . . . . 1 1 . . . . . . . Watcher 7 | . 1 . . . 3 1 . . 2 . . . . Swarmer 19 | . . . . . . 3 . . 3 4 5 . 4 Grunt 32 | . 1 . . . 24 7 . . . . . . . Brawler 1 | . . . . . 1 . . . . . . . . Duelist 3 | . . . . . 3 . . . . . . . . Sentry 10 | . . . . . 5 . . . 1 3 1 . . Specialist 2 | . . . . . 2 . . . . . . . . Hunter 5 | . . . . . 1 2 . . . 2 . . . Programmer 8 | . . . . . . 4 . . 3 1 . . . Compactor 11 | . . . . . . . . 6 . . . 5 . Best Kill Streak 8 | . 1 . . 2 8 3 . 4 5 4 5 3 4 Combat Bots Only 5 | . 1 . . . 4 3 . 4 3 4 5 3 4 Max Kills in Single Turn 5 | . 1 . . 2 3 2 . 1 2 3 5 1 3 Gunslinging . | . . . . . . . . . . . . . . Exploded 5 | . . . . . 1 . . 1 . 3 5 1 3 Melee . | . . . . . . . . . . . . . . Uniques/NPCs Destroyed . | . . . . . . . . . . . . . . Combat | -11 -10 -10 -10 -9 -8 -7 -6 -6 -6 -6 -5 -5 -5 -------- Run | Yrd Mat Min Exi Min Mat Fac Fac Was Fac Gar Fac Was Fac Hostile Shots Fired 528 | . 13 . . . 195 86 . . 39 99 28 . 68 Missed 182 | . 4 . . . 65 33 . . 19 22 8 . 31 Hits 346 | . 9 . . . 130 53 . . 20 77 20 . 37 Projectile 346 | . 9 . . . 130 53 . . 20 77 20 . 37 AOE 1 | . . . . . . . . . . . . . 1 Critical Strikes 18 | . . . . . 7 3 . . . 2 2 . 4 Part Disruptions 1 | . . . . . . 1 . . . . . . . Damage Taken 6640 | . 93 19 . . 2140 816 . 20 348 1621 411 94 1078 Core 2228 | . 12 . . . 397 155 . . 108 554 115 4 883 Absorbed by Shields . | . . . . . . . . . . . . . . Core Remaining (%) 64 | 100 . . . 95 27 77 . . . 22 . . . Volleys Fired 377 | . 22 2 . 4 148 87 . 16 24 21 14 23 16 Largest 4 | . 2 2 . 1 2 2 . 4 4 4 3 1 1 Hottest 171 | . 100 100 . 60 125 138 . 171 171 130 103 45 81 Shots Fired 691 | . 39 4 . 4 265 161 . 24 75 62 19 23 15 Gun 515 | . 39 4 . . 248 160 . 6 28 24 4 . 2 Cannon 129 | . . . . 4 2 . . 5 47 33 14 13 11 Launcher 47 | . . . . . 15 1 . 13 . 5 1 10 2 Special . | . . . . . . . . . . . . . . Kinetic 470 | . . . . . 236 57 . 8 71 57 17 13 11 Thermal 160 | . 39 4 . . 5 103 . 3 4 . . . 2 Explosive 47 | . . . . . 15 1 . 13 . 5 1 10 2 Electromagnetic 14 | . . . . 4 9 . . . . . 1 . . Robot Hit Streak 17 | . 3 2 . 3 17 10 . 12 5 13 17 10 3 Robot Miss Streak 8 | . 4 2 . . 4 4 . 3 8 6 2 4 3 Penetration Max 1 | . . . . . . 1 . . . . . . . Secondary Targets 3 | . . . . . 3 . . . . . . . . Max Gunslinging Chain 1 | . . . . . 1 . . . . . . . . Shots Hit Robots 410 | . 16 2 . 1 179 91 . 16 28 42 15 16 4 Core Hits 287 | . 5 . . 4 112 39 . 22 21 41 17 20 6 Critical Kills 2 | . . . . . 2 . . . . . . . . Critical Parts Destroyed 1 | . . . . . 1 . . . . . . . . Critical Strikes 8 | . 2 . . . 3 1 . . 1 . . . 1 Burn 3 | . 2 . . . . 1 . . . . . . . Destroy 3 | . . . . . 3 . . . . . . . . Blast 2 | . . . . . . . . . 1 . . . 1 Melee Attacks . | . . . . . . . . . . . . . . Impact . | . . . . . . . . . . . . . . Slashing . | . . . . . . . . . . . . . . Piercing . | . . . . . . . . . . . . . . Sneak Attacks . | . . . . . . . . . . . . . . Combat Hostiles . | . . . . . . . . . . . . . . Follow-up Attacks . | . . . . . . . . . . . . . . Damage Inflicted 17107 | . 212 24 . 183 4651 1857 . 3637 998 1637 821 2860 227 Guns 5409 | . 212 24 . . 2819 1797 . 70 213 233 41 . . Cannons 1822 | . . . . 8 33 . . 93 540 470 311 280 87 Explosions 9865 | . . . . 175 1799 60 . 3474 245 934 469 2580 129 Melee . | . . . . . . . . . . . . . . Ramming 11 | . . . . . . . . . . . . . 11 Kinetic 5584 | . . . . . 2647 665 . 143 714 703 345 280 87 Thermal 1734 | . 212 24 . . 62 1132 . 20 284 . . . . Explosive 8934 | . . . . . 1474 60 . 3474 . 934 283 2580 129 Electromagnetic 844 | . . . . 183 468 . . . . . 193 . . Impact . | . . . . . . . . . . . . . . Slashing . | . . . . . . . . . . . . . . Piercing . | . . . . . . . . . . . . . . Highest Corruption 26 | . . . . 8 4 3 . 23 26 26 3 20 20 Average Corruption 11 | . . . . 4 3 1 . 12 24 26 3 14 20 Corruption Purged . | . . . . . . . . . . . . . . Corruption Blocked 13 | . . . . . . . . . . . . . 13 Effects 250 | . . . . 2 66 14 . 11 83 28 . 7 39 Message Errors 56 | . . . . 1 15 1 . 3 21 6 . 1 8 Matter Fused 58 | . . . . 1 20 2 . 1 21 3 . 4 6 Heat Flow Errors 35 | . . . . . 6 3 . . 13 6 . 1 6 Energy Discharges 22 | . . . . . 2 2 . 2 4 7 . . 5 Parts Rejected 4 | . . . . . 1 2 . . . . . . 1 Parts Fused 3 | . . . . . . . . . 2 1 . . . Data Loss (minor) 31 | . . . . . 8 4 . 3 9 1 . . 6 Data Loss (major) 15 | . . . . . 8 . . 1 4 . . . 2 Misfires 11 | . . . . . 4 . . 1 3 3 . . . Alerts 2 | . . . . . 1 . . . 1 . . . . Misdirections 7 | . . . . . . . . . 1 1 . 1 4 Weapon Failures 6 | . . . . . 1 . . . 4 . . . 1 Overload Shots . | . . . . . . . . . . . . . . Overflow Damage 139 | . . . . . 80 . . . 55 4 . . . Projectiles 9 | . . . . . . . . . 9 . . . . Explosions 130 | . . . . . 80 . . . 46 4 . . . Melee . | . . . . . . . . . . . . . . Knockbacks 5 | . . . . . . . . . 2 1 . . 2 Impact . | . . . . . . . . . . . . . . Kinetic 5 | . . . . . . . . . 2 1 . . 2 Secondary . | . . . . . . . . . . . . . . Self-Inflicted Damage 319 | . . . . . 80 . . 20 88 . 28 98 5 Shots 10 | . . . . . 1 . . 1 1 . 1 6 . Rammed 2 | . . . . . . . . . . . . . 2 Targets Rammed 2 | . . . . . . . . . . . . . 2 Kicked . | . . . . . . . . . . . . . . Crushed . | . . . . . . . . . . . . . . Highest Temperature 387 | . 377 78 . 20 387 309 . 165 265 162 7 227 252 Average Temperature 81 | . 127 40 . 12 64 76 . 72 88 79 3 116 97 Received Heat Transfer 1590 | . 54 . . . 999 225 . . 18 237 18 . 39 Effects 8 | . 4 . . . 1 3 . . . . . . . Shutdowns 2 | . 1 . . . 1 . . . . . . . . Interference 6 | . 3 . . . . 3 . . . . . . . Siege Activations . | . . . . . . . . . . . . . . Martial Activations . | . . . . . . . . . . . . . . Shielding Activations . | . . . . . . . . . . . . . . Robots Disrupted . | . . . . . . . . . . . . . . Combat Hostiles . | . . . . . . . . . . . . . . Robots Corrupted 1 | . . . . . 1 . . . . . . . . Combat Hostiles 1 | . . . . . 1 . . . . . . . . Parts Fried 5 | . . . . . 3 . . . . . 2 . . Impact Corruptions . | . . . . . . . . . . . . . . Robots Melted 1 | . . . . . . 1 . . . . . . . Combat Hostiles 1 | . . . . . . 1 . . . . . . . Parts Melted 7 | . 1 . . . . 6 . . . . . . . Heat Transferred 3443 | . 777 74 . . 148 2183 . 37 224 . . . . Parts Sabotaged . | . . . . . . . . . . . . . . Parts Stolen . | . . . . . . . . . . . . . . Parts Stripped . | . . . . . . . . . . . . . . Power Chain Reactions . | . . . . . . . . . . . . . . Latent Energy Used 763 | . . . . 414 149 . . . . . 200 . . LE Corruption 14 | . . . . 8 3 . . . . . 3 . . Alert | -11 -10 -10 -10 -9 -8 -7 -6 -6 -6 -6 -5 -5 -5 ------- Run | Yrd Mat Min Exi Min Mat Fac Fac Was Fac Gar Fac Was Fac Maximum Alert Level 2 | . . . . . 2 1 . . . 1 1 . 1 Low Security (%) 73 | 100 100 100 . 100 33 89 100 100 100 74 68 100 97 Level 1 11 | . . . . . 18 10 . . . 25 31 . 2 Level 2 15 | . . . . . 47 . . . . . . . . Level 3 . | . . . . . . . . . . . . . . Level 4 . | . . . . . . . . . . . . . . Level 5 . | . . . . . . . . . . . . . . High Security . | . . . . . . . . . . . . . . Max Security . | . . . . . . . . . . . . . . Peak Influence 626 | . 30 1 . 20 626 307 97 42 149 228 299 162 211 Initial 282 | . . 1 . . . 282 97 2 . 35 88 84 78 Average 144 | . 2 . . 3 304 73 54 11 43 121 156 118 67 Influence Increases 3428 | . 43 . . 55 1327 485 . 73 380 243 435 138 249 Destroy 0b10 Robot/C 1600 | . 20 . . . 720 320 . . 140 200 120 . 80 Destroy 0b10 Robot/NC 250 | . 10 . . 15 120 40 . . 55 5 5 . . Destroy Leader 378 | . 12 . . . 174 88 . . 54 20 20 . 10 Successful Hack 6 | . . . . . 6 . . . . . . . . Disable Machine 405 | . . . . 15 135 30 . . 90 . 120 . 15 Destroy Structure 684 | . 1 . . 25 127 7 . 73 41 18 170 138 84 Partial Spotted 30 | . . . . . 15 . . . . . . . 15 Lose Combat Pursuer 75 | . . . . . 30 . . . . . . . 45 Influence Decreases 3419 | . 37 6 . 55 707 906 192 80 330 125 362 267 352 Entered New Map 736 | . . 5 . . . 338 102 5 . 15 80 157 34 Time Decay 2363 | . 37 1 . 55 587 538 90 75 320 . 262 90 308 Lost Part 300 | . . . . . 120 30 . . 10 110 20 . 10 Lost Ally 20 | . . . . . . . . . . . . 20 . Squads Dispatched 20 | . 1 . . . 6 6 . . 3 . 1 . 3 Investigation 2 | . 1 . . . 1 . . . . . . . . Extermination 9 | . . . . . . 4 . . 2 . . . 3 Reinforcement 8 | . . . . . 4 2 . . 1 . 1 . . Assault 1 | . . . . . 1 . . . . . . . . Garrison . | . . . . . . . . . . . . . . Intercept . | . . . . . . . . . . . . . . Searches Triggered . | . . . . . . . . . . . . . . Construction Impeded 1 | . . . . . 1 . . . . . . . . Haulers Reinforced 2 | . . . . . . 2 . . . . . . . Active Scanning Responses . | . . . . . . . . . . . . . . Cargo Convoy Interrupts 1 | . . . . . . . . . . . . . 1 Stealth | -11 -10 -10 -10 -9 -8 -7 -6 -6 -6 -6 -5 -5 -5 --------- Run | Yrd Mat Min Exi Min Mat Fac Fac Was Fac Gar Fac Was Fac Distress Signals 7 | . . . . . 4 1 . . 1 . . . 1 Communications Jammed . | . . . . . . . . . . . . . . Distress Signals . | . . . . . . . . . . . . . . Times Spotted 142 | . 3 . . . 51 22 . 6 12 11 8 6 23 Peak Tracking Total 16 | . 1 . . . 5 3 . 3 3 3 5 4 16 Tactical Retreats 4 | . . . . . 2 . . . . . . . 2 Traps | -11 -10 -10 -10 -9 -8 -7 -6 -6 -6 -6 -5 -5 -5 ------- Run | Yrd Mat Min Exi Min Mat Fac Fac Was Fac Gar Fac Was Fac Traps Triggered 18 | . 1 1 . . 4 2 1 . 2 2 2 . 3 Indirectly . | . . . . . . . . . . . . . . Trap Hack Attempts . | . . . . . . . . . . . . . . Triggered . | . . . . . . . . . . . . . . Disarmed . | . . . . . . . . . . . . . . Reprogrammed . | . . . . . . . . . . . . . . Reused . | . . . . . . . . . . . . . . Traps Extracted . | . . . . . . . . . . . . . . Installed . | . . . . . . . . . . . . . . Triggered . | . . . . . . . . . . . . . . Machines | -11 -10 -10 -10 -9 -8 -7 -6 -6 -6 -6 -5 -5 -5 ---------- Run | Yrd Mat Min Exi Min Mat Fac Fac Was Fac Gar Fac Was Fac Machines Disabled 27 | . . . . 1 9 2 . . 6 . 8 . 1 Max in Single Turn 5 | . . . . 1 2 1 . . 5 . 4 . 1 Machines Repaired . | . . . . . . . . . . . . . . Machines Dismantled . | . . . . . . . . . . . . . . Machines Sabotaged . | . . . . . . . . . . . . . . Overloaded Fab Kills . | . . . . . . . . . . . . . . Hacking | -11 -10 -10 -10 -9 -8 -7 -6 -6 -6 -6 -5 -5 -5 --------- Run | Yrd Mat Min Exi Min Mat Fac Fac Was Fac Gar Fac Was Fac Machines Accessed 5 | . . 1 1 . 1 . . . 1 . . . 1 Terminals . | . . . . . . . . . . . . . . Fabricators . | . . . . . . . . . . . . . . Repair Stations . | . . . . . . . . . . . . . . Recycling Units 1 | . . . . . . . . . . . . . 1 Scanalyzers . | . . . . . . . . . . . . . . Garrison Access 2 | . . . . . 1 . . . 1 . . . . Total Hacks 10 | . . 1 1 . 2 . . . 4 . . . 2 Successful 6 | . . 1 1 . 1 . . . 1 . . . 2 Failed 4 | . . . . . 1 . . . 3 . . . . Catastrophic . | . . . . . . . . . . . . . . Database Lockouts . | . . . . . . . . . . . . . . Manual 1 | . . . 1 . . . . . . . . . . Terminals . | . . . . . . . . . . . . . . Fabricators . | . . . . . . . . . . . . . . Repair Stations . | . . . . . . . . . . . . . . Recycling Units 2 | . . . . . . . . . . . . . 2 Scanalyzers . | . . . . . . . . . . . . . . Garrison Access 6 | . . . . . 2 . . . 4 . . . . Terminal Hacks 2 | . . 1 1 . . . . . . . . . . Open Door 1 | . . 1 . . . . . . . . . . . Proto ID Catalog 1 | . . . 1 . . . . . . . . . . Fabricator Hacks . | . . . . . . . . . . . . . . Repair Station Hacks . | . . . . . . . . . . . . . . Recycling Unit Hacks 2 | . . . . . . . . . . . . . 2 Process 1 | . . . . . . . . . . . . . 1 Retrieve Matter 1 | . . . . . . . . . . . . . 1 Scanalyzer . | . . . . . . . . . . . . . . Garrison Access Hacks 2 | . . . . . 1 . . . 1 . . . . Unlock Access 1 | . . . . . . . . . 1 . . . . Coupler Status 1 | . . . . . 1 . . . . . . . . Unauthorized Hacks . | . . . . . . . . . . . . . . Terminals . | . . . . . . . . . . . . . . Fabricators . | . . . . . . . . . . . . . . Repair Stations . | . . . . . . . . . . . . . . Recycling Units . | . . . . . . . . . . . . . . Scanalyzers . | . . . . . . . . . . . . . . Garrison Access . | . . . . . . . . . . . . . . Data Cores Recovered 1 | . . . . . . 1 . . . . . . . Used . | . . . . . . . . . . . . . . Hacking Detections 3 | . . . . . 1 . . . 1 . . . 1 Full Trace Events . | . . . . . . . . . . . . . . Feedback Events . | . . . . . . . . . . . . . . Feedback Blocked . | . . . . . . . . . . . . . . Robot Schematics Acquired . | . . . . . . . . . . . . . . Robots Built . | . . . . . . . . . . . . . . Authchips . | . . . . . . . . . . . . . . Time . | . . . . . . . . . . . . . . Total Robot Build Rating . | . . . . . . . . . . . . . . Part Schematics Acquired . | . . . . . . . . . . . . . . Parts Built . | . . . . . . . . . . . . . . Authchips . | . . . . . . . . . . . . . . Time . | . . . . . . . . . . . . . . Total Part Build Rating . | . . . . . . . . . . . . . . Parts Repaired . | . . . . . . . . . . . . . . Time . | . . . . . . . . . . . . . . Parts Recycled . | . . . . . . . . . . . . . . Recycled Matter . | . . . . . . . . . . . . . . Retrieved Matter . | . . . . . . . . . . . . . . Retrieved Components . | . . . . . . . . . . . . . . Parts Scanalyzed . | . . . . . . . . . . . . . . Part Schematics Acquired . | . . . . . . . . . . . . . . Parts Damaged . | . . . . . . . . . . . . . . Bothacking | -11 -10 -10 -10 -9 -8 -7 -6 -6 -6 -6 -5 -5 -5 ------------ Run | Yrd Mat Min Exi Min Mat Fac Fac Was Fac Gar Fac Was Fac Used RIF Installer . | . . . . . . . . . . . . . . Robots Hacked . | . . . . . . . . . . . . . . Non-combat . | . . . . . . . . . . . . . . Combat . | . . . . . . . . . . . . . . Robot Hacks Applied . | . . . . . . . . . . . . . . Relay Couplers Released . | . . . . . . . . . . . . . . Fabnet Peak Effective % . | . . . . . . . . . . . . . . Robots Rewired . | . . . . . . . . . . . . . . Allies Hacked . | . . . . . . . . . . . . . . Hacks Repelled . | . . . . . . . . . . . . . . Allies | -11 -10 -10 -10 -9 -8 -7 -6 -6 -6 -6 -5 -5 -5 -------- Run | Yrd Mat Min Exi Min Mat Fac Fac Was Fac Gar Fac Was Fac Total Allies 1 | . . . . . . . . . . . . 1 . Largest Group 1 | . . . . . . . . . . . . 1 . Highest-Rated Group 31 | . . . . . . . . . . . . 31 . Highest-Rated Ally 31 | . . . . . . . . . . . . 31 . Total Orders . | . . . . . . . . . . . . . . Ally Attacks 29 | . . . . . . . . . . . . 29 . Total Damage 356 | . . . . . . . . . . . . 356 . Kills 1 | . . . . . . . . . . . . 1 . Allies Corrupted . | . . . . . . . . . . . . . . Allies Melted . | . . . . . . . . . . . . . . Intel | -11 -10 -10 -10 -9 -8 -7 -6 -6 -6 -6 -5 -5 -5 ------- Run | Yrd Mat Min Exi Min Mat Fac Fac Was Fac Gar Fac Was Fac Active Infowar (turns) 3202 | . . . . . 2383 . . . . . . . 819 Optics 819 | . . . . . . . . . . . . . 819 Sensors 2383 | . . . . . 2383 . . . . . . . . Robot Analysis Total . | . . . . . . . . . . . . . . Derelict Logs Recovered 1 | . . 1 . . . . . . . . . . . Drone Launches . | . . . . . . . . . . . . . . Drone Recoveries . | . . . . . . . . . . . . . . Exploration | -11 -10 -10 -10 -9 -8 -7 -6 -6 -6 -6 -5 -5 -5 ------------- Run | Yrd Mat Min Exi Min Mat Fac Fac Was Fac Gar Fac Was Fac Turns Passed 11762 | 68 451 191 355 217 3749 2410 188 259 1619 531 561 195 968 Spaces Moved 5842 | 42 224 112 221 75 1272 843 76 89 610 151 197 189 1741 Core 429 | 7 . . . . 28 . . . . 17 197 7 173 Treads 3616 | 35 224 112 221 75 1197 843 76 89 610 134 . . . Legs 47 | . . . . . 47 . . . . . . . . Wheels . | . . . . . . . . . . . . . . Hover 175 | . . . . . . . . . . . . 175 . Flight 1575 | . . . . . . . . . . . . 7 1568 Fastest Speed 30 | 50 160 160 160 160 145 165 245 245 245 100 50 30 30 Average Speed 155 | 141 160 160 160 160 204 210 245 245 255 299 248 64 34 Slowest Speed 850 | 160 160 160 160 160 600 245 245 245 330 850 450 200 170 Overloaded Moves . | . . . . . . . . . . . . . . Propulsion Burnouts . | . . . . . . . . . . . . . . Robots Hopped 5 | . . . . . . . . . . . . . 5 Potential Cave-ins . | . . . . . . . . . . . . . . Cave-ins Triggered . | . . . . . . . . . . . . . . Exploration Rate (%) 35 | 3 28 42 60 18 72 20 2 75 19 39 7 91 27 Regions Visited 13 Branch Regions 3 Pre-discovered Areas . | . . . . . . . . . . . . . . Known Exits Taken 3 | . . . . . 1 1 . . 1 . . . . Unknown Exits Taken 5 | 1 1 1 1 1 . . . . . . . . . Scrap Searched . | . . . . . . . . . . . . . . Spaces Dug 6 | . . . . . 6 . . . . . . . . Terrain Destroyed 764 | . . . . 39 132 6 . 185 59 8 92 198 45 Melee . | . . . . . . . . . . . . . . Projectile 18 | . . . . . . 1 . . 9 . . 4 4 AOE 746 | . . . . 39 132 5 . 185 50 8 92 194 41 Terrain Rammed . | . . . . . . . . . . . . . . Walls Destroyed . | . . . . . . . . . . . . . . Machines Disabled . | . . . . . . . . . . . . . . Actions | -11 -10 -10 -10 -9 -8 -7 -6 -6 -6 -6 -5 -5 -5 --------- Run | Yrd Mat Min Exi Min Mat Fac Fac Was Fac Gar Fac Was Fac Total 8007 | 51 276 120 222 168 2168 1388 80 114 648 196 251 230 2095 Wait 1548 | . 18 1 . 87 668 410 . 5 8 15 24 10 302 Move 5822 | 41 223 111 220 74 1271 842 76 88 610 150 197 188 1731 Hop 5 | . . . . . . . . . . . . . 5 Pick Up 72 | 5 6 4 1 3 29 11 1 1 2 . 2 1 6 Fast Attach 34 | . 3 . . . 5 6 . . 1 2 4 2 11 Attach 54 | 5 . 1 . . 19 8 1 3 . 2 6 2 7 Detach 14 | . . . . . 1 1 . . 1 1 4 1 5 Swap 31 | . 2 . 1 . 16 10 1 . . 1 . . . Drop 40 | . 2 1 . . 11 9 1 1 2 . . 3 10 Fire 377 | . 22 2 . 4 148 87 . 16 24 21 14 23 16 Melee . | . . . . . . . . . . . . . . Ram 2 | . . . . . . . . . . . . . 2 Kick . | . . . . . . . . . . . . . . Crush . | . . . . . . . . . . . . . . Escape Stasis 8 | . . . . . . 4 . . . 4 . . . Rewire . | . . . . . . . . . . . . . . Trap . | . . . . . . . . . . . . . . Miscellaneous . | . . . . . . . . . . . . . . Route ------- -11/Scrapyard -10/Materials -10/Mines -10/Exiles -9/Mines -8/Materials (discovered 2 exits: *Fac x2) -7/Factory (discovered 2 exits: *Fac x2) -6/Factory -6/Waste -6/Factory -6/Garrison -5/Factory -5/Waste -5/Factory History --------- Turn | Location | Event 3 | -11/Scrapyard | Discovered new exit (range 16) 69 | -11/Scrapyard | Entered Materials 341 | -10/Materials | Build established: Mutant 376 | -10/Materials | Discovered new exit (range 13) 520 | -10/Materials | Entered Mines 524 | -10/Mines | Learned 8 Materials zone layouts 526 | -10/Mines | Met a Derelict who couldn't figure out how to use a Trap Extractor 704 | -10/Mines | Deemed a non-threat by the Exiles lab entrance 704 | -10/Mines | Discovered new exit (range 5) 711 | -10/Mines | Entered Exiles 750 | -10/Exiles | Met 8R-AWN 775 | -10/Exiles | Met EX-HEX 825 | -10/Exiles | Met EX-BIN 847 | -10/Exiles | Aligned with FarCom system 849 | -10/Exiles | Given EX-Vault access code 891 | -10/Exiles | Opened EX-Vault 903 | -10/Exiles | Found Latent Energy Streamer 938 | -10/Exiles | Warned to stay clear of 0b10 Research branches 992 | -10/Exiles | Met EX-DEC 1050 | -10/Exiles | Discovered new exit (range 10) 1066 | -10/Exiles | Left Exiles lab with Latent Energy Streamer 1066 | -10/Exiles | Entered Mines 1116 | -9/Mines | Discovered new exit (range 12) 1283 | -9/Mines | Entered Materials 1283 | -8/Materials | Evolved 4 slots: Power x2, Utility x2 1699 | -8/Materials | Build established: Skirmisher 3146 | -8/Materials | Core integrity fell below 50% 3197 | -8/Materials | Lost 3 parts (1p1n1w) 3416 | -8/Materials | Discovered new exit (range 15) 3448 | -8/Materials | Identified exit to Factory 4038 | -8/Materials | Lost 4 parts (1p1n1u1w) 4087 | -8/Materials | Discovered exit to Factory (range 3) 4309 | -8/Materials | Build established: Mutant 4883 | -8/Materials | First assault squad dispatched 5032 | -8/Materials | Entered Factory 5032 | -7/Factory | Evolved 2 slots: Utility x2 5772 | -7/Factory | Discovered new exit (range 11) 5797 | -7/Factory | Identified exit to Factory 7058 | -7/Factory | Discovered exit to Factory (range 7) 7154 | -7/Factory | Found Prototype Launcher 7155 | -7/Factory | Identified Rocket Array 7168 | -7/Factory | Found Rocket Array 7442 | -7/Factory | Entered another Factory area 7442 | -6/Factory | Evolved 2 slots: Weapon x2 7630 | -6/Factory | Sucked down chute 7630 | -6/Factory | Entered Waste 7645 | -6/Waste | EMP discharged 7660 | -6/Waste | Spotted C-40 Crusher 7670 | -6/Waste | Destroyed C-40 Crusher 7705 | -6/Waste | Spotted C-40 Crusher 7707 | -6/Waste | Spotted C-40 Crusher 7714 | -6/Waste | Destroyed C-40 Crusher 7717 | -6/Waste | Spotted C-40 Crusher 7720 | -6/Waste | Destroyed C-40 Crusher 7727 | -6/Waste | Destroyed C-40 Crusher 7733 | -6/Waste | Spotted C-40 Crusher 7743 | -6/Waste | Destroyed C-40 Crusher 7745 | -6/Waste | EMP discharged 7745 | -6/Waste | System corruption reached 10% 7757 | -6/Waste | Spotted C-40 Crusher 7766 | -6/Waste | Destroyed C-40 Crusher 7812 | -6/Waste | Found Hvy. Insulated Plating 7845 | -6/Waste | EMP discharged 7852 | -6/Waste | Discovered new exit (range 16) 7887 | -6/Waste | Identified exit to Factory 7889 | -6/Waste | Entered Factory 7956 | -6/Factory | Build established: Gunner 9508 | -6/Factory | Identified exit to Garrison 9508 | -6/Factory | Entered Garrison 9744 | -6/Garrison | Triggered checkpoint 9802 | -6/Garrison | Lost 3 parts (1p1n1u) 9846 | -6/Garrison | Triggered checkpoint 9962 | -6/Garrison | Discovered new exit (range 13) 9971 | -6/Garrison | Spotted B-90 Cyclops 9981 | -6/Garrison | Spotted B-86 Titan 10022 | -6/Garrison | Core integrity fell below 50% 10038 | -6/Garrison | Identified exit to Factory 10039 | -6/Garrison | Entered Factory 10039 | -5/Factory | Evolved 2 slots: Weapon x2 10055 | -5/Factory | Lost 6 parts (1p1n2u2w) 10305 | -5/Factory | Build established: Mutant 10600 | -5/Factory | Sucked down chute 10600 | -5/Factory | Entered Waste 10601 | -5/Waste | Met a frightened Derelict 10615 | -5/Waste | EMP discharged 10615 | -5/Waste | System corruption reached 10% 10637 | -5/Waste | Spotted C-40 Crusher 10645 | -5/Waste | Destroyed C-40 Crusher 10665 | -5/Waste | Spotted C-40 Crusher 10666 | -5/Waste | Spotted C-40 Crusher 10687 | -5/Waste | Spotted C-40 Crusher 10688 | -5/Waste | Spotted C-40 Crusher 10697 | -5/Waste | Allies destroyed C-40 Crusher 10702 | -5/Waste | Destroyed C-40 Crusher 10704 | -5/Waste | Destroyed C-40 Crusher 10714 | -5/Waste | Destroyed C-40 Crusher 10715 | -5/Waste | EMP discharged 10718 | -5/Waste | Spotted C-40 Crusher 10752 | -5/Waste | Destroyed C-40 Crusher 10771 | -5/Waste | Discovered new exit (range 13) 10795 | -5/Waste | Identified exit to Factory 10795 | -5/Waste | Entered Factory 11291 | -5/Factory | Build established: Sprinter 11718 | -5/Factory | Core integrity fell below 50% 11741 | -5/Factory | Cargo convoy interrupted 11741 | -5/Factory | Core integrity fell below 20% 11763 | -5/Factory | Destroyed by P-70 Sage with High-powered Shock Rifle Last Messages --------------- X-77 Beamer unfolds itself. ALERT: Cargo convoy interrupted, initiating access lockdown. Manufacturing Mainframe disabled. Imp. Corruption Screen intercepted 1% system corruption. Manufacturing Mainframe disabled. K-01 Serf collects debris. Imp. Corruption Screen intercepted 1% system corruption. U-05 Engineer lays Concrete. Acquired 15 matter. U-05 Engineer lays Concrete. K-01 Serf collects debris. Acquired 30 matter. U-05 Engineer lays Concrete. System corrupted: Matter fused (-5). U-05 Engineer lays Concrete. K-01 Serf cleans the Neutrino Reactor. Critical hit (Burn: +37). Map ----- +----------------------------------------------------+ | ??????????????????????????????????????????????# "" | | ??????????????????????????????????????????????# "" | | ??????????????????????????????????????????????# "" | | ??????????????????????????????????????????????# " | | ??????????????????????????????????????????????# | | ??????????????????????????????????????????????# "" | | ??????????????????????????????????????????????# "" | | ??????????????????????????????????????????????# "" | | ??????????????????????????????????????????????# " | | ??????????????????????????????????????????????# | | ??????????????????????????????????????????????# | | ??????????????????????????????????????????????#### | | ???????????????????????????????????????????????### | | ????????????????????????????????????????######## | | ????????????????????????????????????????# | | ????????????????????????????????????????# | | ????????????????????????????????????????# | | ????????????????????????????????????????# ####% | | ???????#####A###########????????????????# #??# | | ???????# u ????????????????# #??# | | ???????# g ########+######## #??# | | ???????# pp#??# "Y | | ???????# p #??# " | | ???????+ #??# | | ????????????" """ """ """ #??# | | ????????????????" """ """@ k ##### #??# | | ????????????????" """ """ ########???# #??# | | ??????????????? #??????????# #??# | | ???????????????"" """ """ k #??????????#+#??# | | ???????????????"" """ """ s#???????????????# ### | | ????????????????? """ """ A#???????????????# #?? | | ????????????????? ss +???????????????# #?? | | ????????????????" """ """ #???????????????# #?? | | ????????????????" """ """ s #???????????????# #?? | | ????????????????? ?"" """ #???????????????# #?? | | ???????????????????? s #?????????#######+### | | ???????????????????""?""" ""#?????????# | | ???????????????????????"" ""#?????????# | | ???????????????????????"" ""#?????????# | | ???????????????????????? G#?????????# ! | | ????????????????????????" "???????????# ! | | ????????????????????????" "???????????# ! | | ????????????????????????" "???????????########### | | ???????????????????????? k ????????????????????# | | ?????????????????????????k ????????????????????# | | ????????????????????????? ?????????????????????# | | ????????????????????????? ?????????????????????# | | ????????????????????????????????????????????????# | | ????????????????????????????????????????????????# | | ????????????????????????????????????????????????# | +----------------------------------------------------+ Best States ------------- Heat Dissipation 62 Energy Generation 29 Energy Capacity 500 Matter Stores 500 Matter Capacity 500 Sight Range 22 Robot Scan Range 15 Terrain Scan Density 10 Corruption Block 15 Weapon Cycling 30 Evasion (%) 64 Targeting Accuracy 6 Launcher Accuracy 20 Core Analysis 6 Recoil Reduction 2 Trap Extractor Capacity 6 Item Schematics ----------------- None Robot Schematics ------------------ None Fabricated ------------ Nothing Repaired ---------- Nothing Alien Tech Used ----------------- None Achievements -------------- None Challenges ------------ None Game ------ Seed FissionStealthNanovents Manual? 0 Play Time 01:12:21 Cumulative 102.5 hours Start 2025.08.23 @ 11:35:51 End 2025.08.23 @ 13:27:32 Sessions 1 Manual Loads 0 Difficulty Rogue Special Mode None Game No. 389 Rogue 389 Adventurer 0 Explorer 0 Win Type - Total 0 Types 0/0/0/0/0/0/0/0/0/0 Lore% 43 Gallery% 42 Achievement% 31 Wizard Run 0 Options --------- Layout 2 ASCII 0 Keyboard 0 Movement Mouse Keybinds 0 Fullscreen 2 Font 24/Smallcaps Map View 50x44 Zoom Use 0% Tactical HUD 0 Map Filters NONE Filters NONE Steam 1 RUN: 6565c41a-545a-4a91-9cd5-2676f9af7891